Cogmind - Beta 16 @@@ ROGUE MODE // 2026.02.09 @ 16:36:45 Player: verv Result: Self-destructed Performance ------------- Evolutions (2) 1000 Regions Visited (5) 1000 Robots Destroyed (18) 90 Value Destroyed (363) 363 Prototype IDs (36) 720 Alien Tech Used (0) 0 Bonus (300) 300 TOTAL SCORE: 3473 Bonus ------- Aligned with FarCom 300 Cogmind --------- Core Integrity 531/550 Matter 182/300 Energy 250/250 System Corruption 0% Temperature Cool (0) Movement Core (500) Ox9 Location -8/Materials Parts ------- > --- POWER (1) -------- Ion Engine > --- PROPULSION (3) --- Light Treads > --- UTILITY (5) ------ Large Storage Unit Signal Interpreter > --- WEAPON (2) ------- Great Maul > --- INVENTORY (15) --- Cesium-ion Thruster Structural Scanner Authchip [Storage] Chronowheel Pulse Rifle Assault Rifle Light Assault Rifle Light Assault Rifle Light Cannon Datajack Peak State ------------ > --- POWER ------------ Ion Engine > --- PROPULSION ------- Light Treads Advanced Treads > --- UTILITY ---------- Large Storage Unit Signal Interpreter > --- WEAPON ----------- Mining Laser Great Maul > --- INVENTORY -------- Light Treads Cesium-ion Thruster Authchip [Storage] Pulse Rifle Assault Rifle Light Assault Rifle Light Assault Rifle Light Cannon Grenade Launcher Datajack [Rating: 12] Favorites ----------- Power Ion Engine Engine Ion Engine Propulsion Light Treads Treads Light Treads Leg Aluminum Leg Wheel Compact Wheel Utility Signal Interpreter Storage Large Storage Unit Processor Signal Interpreter Weapon Light Cannon Energy Gun EM Pulse Gun Ballistic Gun Assault Rifle Ballistic Cannon Light Cannon Launcher Grenade Launcher Special Weapon Mining Laser Impact Weapon Great Maul Special Melee Weapon Datajack Build | -11 -10 -10 -10 -9 -8 ------- Run | Yrd Mat Min Exi Min Mat Slots Evolved 4 | . . . . . 4 Power . | . . . . . . Propulsion 1 | . . . . . 1 Utility 3 | . . . . . 3 Weapon . | . . . . . . Parts Attached 25 | 5 13 6 1 . . Power 3 | 1 . 2 . . . Engine 3 | 1 . 2 . . . Core . | . . . . . . Reactor . | . . . . . . Propulsion 9 | 2 5 2 . . . Treads 6 | 2 2 2 . . . Leg 1 | . 1 . . . . Wheel 2 | . 2 . . . . Hover . | . . . . . . Flight . | . . . . . . Utility 4 | 1 3 . . . . Device . | . . . . . . Storage 3 | 1 2 . . . . Processor 1 | . 1 . . . . Hackware . | . . . . . . Protection . | . . . . . . Artifact . | . . . . . . Weapon 9 | 1 5 2 1 . . Energy Gun 1 | 1 . . . . . Energy Cannon . | . . . . . . Ballistic Gun 2 | . 1 1 . . . Ballistic Cannon 1 | . 1 . . . . Launcher 2 | . 2 . . . . Special Weapon 1 | . 1 . . . . Impact Weapon 1 | . . 1 . . . Slashing Weapon . | . . . . . . Piercing Weapon . | . . . . . . Special Melee Weapon 1 | . . . 1 . . Unidentified Prototypes . | . . . . . . Parts Lost 7 | . 2 3 . 2 . Power 2 | . 1 1 . . . Propulsion 2 | . . 1 . 1 . Utility . | . . . . . . Weapon 3 | . 1 1 . 1 . Highest Loss Streak 3 | . 1 3 . 2 . To Critical Strikes . | . . . . . . Average Backups 7 | . 3 9 9 10 10 Power . | . . . . . . Propulsion . | . . 1 1 1 1 Utility 1 | . . 1 2 2 2 Weapon 4 | . 2 5 5 5 5 Tool/Special . | . . . . . . Unused Backups 6 | . . . . . 6 Power . | . . . . . . Propulsion 1 | . . . . . 1 Utility 2 | . . . . . 2 Weapon 2 | . . . . . 2 Tool/Special 1 | . . . . . 1 Average Slot Usage (%) 87 | . 81 89 100 81 45 Engine 11 | . 11 7 14 14 9 Treads 21 | . 14 24 28 19 9 Wheel 1 | . 4 . . . . Storage 13 | . 14 14 14 14 9 Processor 13 | . 12 14 14 14 9 Ballistic Gun 9 | . 9 8 14 3 . Ballistic Cannon 8 | . 8 13 1 9 . Launcher 2 | . 3 3 . 1 . Special Melee Weapon 3 | . . . 12 3 . Peak Build Rating 12 | 5 7 12 12 12 9 Average Rating 8 | 3 5 9 10 9 9 On Entrance 7 | . 5 6 10 12 9 Avg Prop Armor Cover (%) 15 | . 11 . . 15 20 Naked Turns . | . . . . . . Heaviest Build 31 | 12 29 31 30 31 29 Greatest Support 42 | 40 40 42 42 42 3 Greatest Overweight (x) 9 | . 3 1 . 9 9 Average Overweight (x) . | . . . . 1 9 Largest Inventory Capacity 15 | 8 15 15 15 15 15 Average Capacity 13 | 6 10 15 15 15 15 Most Carried 11 | 2 7 11 10 10 10 Average Carried 7 | . 3 9 9 10 10 Final Capacity 15 | 8 15 15 15 15 15 Final Carried 10 | . 6 9 10 10 10 Class Distribution -------------------- 100% | Mutant Dominant Class ---------------- Mutant | -10/Materials Mutant | -10/Mines Mutant | -10/Exiles Mutant | -9/Mines Mutant | -8/Materials Resources | -11 -10 -10 -10 -9 -8 ----------- Run | Yrd Mat Min Exi Min Mat Matter Collected 679 | 240 285 144 . 10 . Remotely . | . . . . . . Salvage Created 435 | . 346 84 . 5 . Parts 29 | . 28 1 . . . Haulers Intercepted . | . . . . . . Recyclers Shooed . | . . . . . . Parts Field Recycled . | . . . . . . Retrieved Matter . | . . . . . . Parts Self-Destructed . | . . . . . . Prevented . | . . . . . . Parts Restored . | . . . . . . Kills | -11 -10 -10 -10 -9 -8 ------- Run | Yrd Mat Min Exi Min Mat Combat Hostiles Destroyed 22 | . 14 5 . 3 . Melee 1 | . . 1 . . . Guns 4 | . 4 . . . . Cannons 9 | . 4 3 . 2 . AOE 7 | . 6 . . 1 . Classes Destroyed 5 | . 4 1 . . . Recycler 1 | . 1 . . . . Watcher 1 | . 1 . . . . Swarmer 9 | . 9 . . . . Grunt 7 | . 5 2 . . . Assembled 6 | . . 3 . 3 . Best Kill Streak 7 | . 7 2 . 2 . Combat Bots Only 6 | . 6 2 . 2 . Max Kills in Single Turn 4 | . 4 1 . 1 . Gunslinging . | . . . . . . Exploded 3 | . 3 . . 1 . Melee 1 | . . 1 . . . Uniques/NPCs Destroyed . | . . . . . . Combat | -11 -10 -10 -10 -9 -8 -------- Run | Yrd Mat Min Exi Min Mat Hostile Shots Fired 120 | . 42 57 . 17 4 Missed 20 | . 9 8 . 3 . Hits 100 | . 33 49 . 14 4 Melee 1 | . . 1 . . . Projectile 99 | . 33 48 . 14 4 Critical Strikes 1 | . 1 . . . . Part Disruptions 3 | . . . . 3 . Damage Taken 1171 | . 380 550 . 174 67 Core 247 | . 76 128 . 24 19 Absorbed by Shields . | . . . . . . Core Remaining (%) 54 | 100 . . . 8 . Volleys Fired 61 | . 26 18 . 17 . Largest 2 | . 2 2 . 2 . Hottest 100 | . 100 100 . 60 . Shots Fired 88 | . 49 19 . 20 . Gun 23 | . 22 1 . . . Cannon 49 | . 22 10 . 17 . Launcher 7 | . 4 . . 3 . Special 9 | . 1 8 . . . Kinetic 72 | . 44 11 . 17 . Thermal 9 | . 1 8 . . . Explosive 7 | . 4 . . 3 . Electromagnetic . | . . . . . . Robot Hit Streak 11 | . 11 2 . 3 . Robot Miss Streak 4 | . 3 3 . 4 . Penetration Max . | . . . . . . Secondary Targets . | . . . . . . Shots Hit Robots 57 | . 31 13 5 8 . Core Hits 32 | . 22 5 . 5 . Critical Kills . | . . . . . . Critical Parts Destroyed . | . . . . . . Critical Strikes 1 | . . . . 1 . Blast 1 | . . . . 1 . Melee Attacks 18 | . . 8 5 5 . Impact 13 | . . 8 . 5 . Slashing . | . . . . . . Piercing . | . . . . . . Sneak Attacks 4 | . . . 4 . . Combat Hostiles . | . . . . . . Follow-up Attacks . | . . . . . . Damage Inflicted 1507 | . 856 436 . 215 . Guns 119 | . 107 12 . . . Cannons 464 | . 279 83 . 102 . Explosions 580 | . 467 . . 113 . Melee 262 | . . 262 . . . Ramming 34 | . 3 31 . . . Kinetic 583 | . 386 95 . 102 . Thermal 48 | . . 48 . . . Explosive 580 | . 467 . . 113 . Electromagnetic . | . . . . . . Impact 262 | . . 262 . . . Slashing . | . . . . . . Piercing . | . . . . . . Highest Corruption . | . . . . . . Average Corruption . | . . . . . . Corruption Purged . | . . . . . . Corruption Blocked . | . . . . . . Overload Shots . | . . . . . . Overflow Damage 99 | . 61 27 . 11 . Projectiles 15 | . . 4 . 11 . Explosions 61 | . 61 . . . . Melee 23 | . . 23 . . . Knockbacks 15 | . 8 3 . 4 . Impact 3 | . . 3 . . . Kinetic 10 | . 6 . . 4 . Secondary 2 | . 2 . . . . Self-Inflicted Damage 61 | . 38 . . 23 . Shots 3 | . 2 . . 1 . Rammed 6 | . 1 5 . . . Targets Rammed 6 | . 1 5 . . . Kicked . | . . . . . . Crushed . | . . . . . . Highest Temperature 58 | . 49 58 . 30 . Average Temperature 16 | . 13 20 . 12 . Received Heat Transfer 721 | . 129 312 . 280 . Siege Activations . | . . . . . . Martial Activations . | . . . . . . Shielding Activations . | . . . . . . Robots Disrupted . | . . . . . . Combat Hostiles . | . . . . . . Robots Corrupted 1 | . . 1 . . . Combat Hostiles 1 | . . 1 . . . Parts Fried . | . . . . . . Impact Corruptions 2 | . . 2 . . . Robots Melted . | . . . . . . Combat Hostiles . | . . . . . . Parts Melted . | . . . . . . Heat Transferred 100 | . . 100 . . . Parts Sabotaged . | . . . . . . Parts Stolen . | . . . . . . Parts Stripped . | . . . . . . Power Chain Reactions . | . . . . . . Alert | -11 -10 -10 -10 -9 -8 ------- Run | Yrd Mat Min Exi Min Mat Maximum Alert Level . | . . . . . . Low Security (%) 100 | 100 100 100 . 100 100 Level 1 . | . . . . . . Level 2 . | . . . . . . Level 3 . | . . . . . . Level 4 . | . . . . . . Level 5 . | . . . . . . High Security . | . . . . . . Max Security . | . . . . . . Peak Influence 151 | . 151 20 . 7 . Initial 18 | . . 18 . . . Average 21 | . 60 . . . . Influence Increases 429 | . 380 40 . 9 . Destroy 0b10 Robot/C 320 | . 280 40 . . . Destroy 0b10 Robot/NC 10 | . 10 . . . . Destroy Leader 52 | . 52 . . . . Successful Hack 2 | . 2 . . . . Destroy Structure 30 | . 21 . . 9 . Lose Combat Pursuer 15 | . 15 . . . . Influence Decreases 429 | . 332 88 . 9 . Entered New Map 30 | . . 30 . . . Time Decay 360 | . 312 46 . 2 . Lost Part 39 | . 20 12 . 7 . Squads Dispatched 2 | . 1 1 . . . Investigation 2 | . 1 1 . . . Extermination . | . . . . . . Reinforcement . | . . . . . . Assault . | . . . . . . Garrison . | . . . . . . Intercept . | . . . . . . Searches Triggered . | . . . . . . Construction Impeded . | . . . . . . Haulers Reinforced . | . . . . . . Active Scanning Responses . | . . . . . . Cargo Convoy Interrupts . | . . . . . . Stealth | -11 -10 -10 -10 -9 -8 --------- Run | Yrd Mat Min Exi Min Mat Distress Signals 3 | . 3 . . . . Communications Jammed . | . . . . . . Distress Signals . | . . . . . . Times Spotted 36 | . 23 7 . 5 1 Peak Tracking Total 7 | . 7 4 . 3 1 Tactical Retreats 3 | . 1 1 . 1 . Traps | -11 -10 -10 -10 -9 -8 ------- Run | Yrd Mat Min Exi Min Mat Traps Triggered 2 | . 2 . . . . Indirectly . | . . . . . . Trap Hack Attempts . | . . . . . . Triggered . | . . . . . . Disarmed . | . . . . . . Reprogrammed . | . . . . . . Reused . | . . . . . . Traps Extracted . | . . . . . . Installed . | . . . . . . Triggered . | . . . . . . Machines | -11 -10 -10 -10 -9 -8 ---------- Run | Yrd Mat Min Exi Min Mat Machines Disabled . | . . . . . . Max in Single Turn . | . . . . . . Machines Repaired . | . . . . . . Machines Dismantled . | . . . . . . Machines Sabotaged . | . . . . . . Overloaded Fab Kills . | . . . . . . Hacking | -11 -10 -10 -10 -9 -8 --------- Run | Yrd Mat Min Exi Min Mat Machines Accessed 12 | . 5 1 5 1 . Terminals 4 | . 3 . . 1 . Fabricators . | . . . . . . Repair Stations . | . . . . . . Recycling Units 2 | . 2 . . . . Scanalyzers . | . . . . . . Garrison Access . | . . . . . . Total Hacks 65 | . 10 1 50 4 . Successful 59 | . 6 1 50 2 . Failed 6 | . 4 . . 2 . Catastrophic 1 | . . . . 1 . Database Lockouts . | . . . . . . Manual 1 | . . . 1 . . Terminals 10 | . 6 . . 4 . Fabricators . | . . . . . . Repair Stations . | . . . . . . Recycling Units 4 | . 4 . . . . Scanalyzers . | . . . . . . Garrison Access . | . . . . . . Terminal Hacks 55 | . 2 1 50 2 . Record 52 | . 1 . 49 2 . Open Door 1 | . . 1 . . . Transport Status 1 | . 1 . . . . Proto ID Catalog 1 | . . . 1 . . Fabricator Hacks . | . . . . . . Repair Station Hacks . | . . . . . . Recycling Unit Hacks 4 | . 4 . . . . Report Inventory 2 | . 2 . . . . Retrieve Components 2 | . 2 . . . . Scanalyzer . | . . . . . . Garrison Access Hacks . | . . . . . . Unauthorized Hacks . | . . . . . . Terminals . | . . . . . . Fabricators . | . . . . . . Repair Stations . | . . . . . . Recycling Units . | . . . . . . Scanalyzers . | . . . . . . Garrison Access . | . . . . . . Data Cores Recovered . | . . . . . . Used . | . . . . . . Hacking Detections 4 | . 3 . . 1 . Full Trace Events 2 | . 1 . . 1 . Feedback Events . | . . . . . . Feedback Blocked . | . . . . . . Robot Schematics Acquired . | . . . . . . Robots Built . | . . . . . . Authchips . | . . . . . . Time . | . . . . . . Total Robot Build Rating . | . . . . . . Part Schematics Acquired . | . . . . . . Parts Built . | . . . . . . Authchips . | . . . . . . Time . | . . . . . . Total Part Build Rating . | . . . . . . Part Studies Acquired . | . . . . . . Parts Repaired . | . . . . . . Time . | . . . . . . Parts Recycled . | . . . . . . Recycled Matter . | . . . . . . Retrieved Matter . | . . . . . . Retrieved Components 14 | . 14 . . . . Parts Scanalyzed . | . . . . . . Part Schematics Acquired . | . . . . . . Parts Damaged . | . . . . . . Bothacking | -11 -10 -10 -10 -9 -8 ------------ Run | Yrd Mat Min Exi Min Mat Used RIF Installer . | . . . . . . Robots Hacked 4 | . . . 4 . . Non-combat 2 | . . . 2 . . Combat 2 | . . . 2 . . Robot Hacks Applied 4 | . . . 4 . . parse_system 4 | . . . 4 . . Relay Couplers Released . | . . . . . . Fabnet Peak Effective % . | . . . . . . Robots Rewired . | . . . . . . Allies Hacked . | . . . . . . Hacks Repelled . | . . . . . . Allies | -11 -10 -10 -10 -9 -8 -------- Run | Yrd Mat Min Exi Min Mat Total Allies . | . . . . . . Largest Group . | . . . . . . Highest-Rated Group . | . . . . . . Highest-Rated Ally . | . . . . . . Total Orders . | . . . . . . Ally Attacks . | . . . . . . Total Damage . | . . . . . . Kills . | . . . . . . Allies Corrupted . | . . . . . . Allies Melted . | . . . . . . Intel | -11 -10 -10 -10 -9 -8 ------- Run | Yrd Mat Min Exi Min Mat Active Infowar (turns) . | . . . . . . Robot Analysis Total . | . . . . . . Derelict Logs Recovered 2 | . . 1 . 1 . Drone Launches . | . . . . . . Drone Recoveries . | . . . . . . Exploration | -11 -10 -10 -10 -9 -8 ------------- Run | Yrd Mat Min Exi Min Mat Turns Passed 4004 | 79 1089 1227 916 646 47 Spaces Moved 2108 | 47 649 650 595 158 9 Core 53 | 5 12 . . 27 9 Treads 1903 | 42 485 650 595 131 . Legs 7 | . 7 . . . . Wheels 145 | . 145 . . . . Hover . | . . . . . . Flight . | . . . . . . Fastest Speed 50 | 50 100 152 152 152 500 Average Speed 161 | 148 147 166 152 212 500 Slowest Speed 500 | 160 200 225 152 500 500 Overloaded Moves . | . . . . . . Propulsion Burnouts . | . . . . . . Robots Hopped . | . . . . . . Potential Cave-ins 3 | . . . . 3 . Cave-ins Triggered . | . . . . . . Exploration Rate (%) 52 | 5 94 86 74 53 2 Regions Visited 5 Branch Regions 3 Pre-discovered Areas 2 | . . 1 1 . . Known Exits Taken 4 | . 1 1 1 1 . Unknown Exits Taken 1 | 1 . . . . . Scrap Searched 4 | . . 2 . 2 . Spaces Dug 5 | . . . . 5 . Terrain Destroyed 30 | . 18 . . 12 . Melee 5 | . . . . 5 . Projectile . | . . . . . . AOE 25 | . 18 . . 7 . Terrain Rammed . | . . . . . . Walls Destroyed . | . . . . . . Machines Disabled . | . . . . . . Actions | -11 -10 -10 -10 -9 -8 --------- Run | Yrd Mat Min Exi Min Mat Total 2582 | 56 734 737 604 440 11 Wait 317 | . 19 38 . 258 2 Move 2103 | 46 648 649 594 157 9 Hop . | . . . . . . Pick Up 32 | 5 18 8 1 . . Fast Attach . | . . . . . . Attach 20 | 5 11 4 . . . Detach 1 | . 1 . . . . Swap 14 | . 4 6 1 3 . Drop 7 | . 6 1 . . . Fire 61 | . 26 18 . 17 . Melee 18 | . . 8 5 5 . Ram 1 | . 1 . . . . Kick . | . . . . . . Crush 5 | . . 5 . . . Escape Stasis . | . . . . . . Rewire 3 | . . . 3 . . Trap . | . . . . . . Miscellaneous . | . . . . . . Route ------- -11/Scrapyard -10/Materials (discovered 4 exits: *Mat x2 / *Min x2) -10/Mines (discovered 2 exits: *Mat / *Exi) -10/Exiles (discovered 2 exits: *Min x2) -9/Mines -8/Materials History --------- Turn | Location | Event 3 | -11/Scrapyard | Discovered new exit (range 15) 80 | -11/Scrapyard | Entered Materials 326 | -10/Materials | Discovered new exit (range 12) 328 | -10/Materials | Build established: Mutant 391 | -10/Materials | Discovered new exit (range 11) 474 | -10/Materials | Identified exit to Mines 518 | -10/Materials | Discovered new exit (range 4) 551 | -10/Materials | Identified exit to Materials 931 | -10/Materials | Discovered exit to Materials (range 11) 1169 | -10/Materials | Entered Mines 1202 | -10/Mines | Met a Derelict shopkeep closing up shop 1450 | -10/Mines | Excavation squad dispatched 1450 | -10/Mines | A large section of the Mines collapsed 1580 | -10/Mines | Core integrity fell below 50% 1602 | -10/Mines | Core integrity fell below 20% 1632 | -10/Mines | Lost 3 parts (1p1n1w) 1704 | -10/Mines | Learned 2 Materials zone layouts 2001 | -10/Mines | Discovered exit to Materials (range 10) 2186 | -10/Mines | Found a hidden stash of uninstalled traps 2232 | -10/Mines | Learned location of Storage (-9) 2390 | -10/Mines | Deemed a non-threat by the Exiles lab entrance 2390 | -10/Mines | Discovered new exit (range 5) 2395 | -10/Mines | Identified exit to Exiles 2396 | -10/Mines | Entered Exiles 2431 | -10/Exiles | Discovered new exit (range 15) 2450 | -10/Exiles | Identified exit to Mines 2486 | -10/Exiles | Met 8R-AWN 2524 | -10/Exiles | Met EX-HEX 2624 | -10/Exiles | Met EX-DEC 2673 | -10/Exiles | Learned location of Zion (-7) 2733 | -10/Exiles | Discovered exit to Mines (range 14) 2841 | -10/Exiles | Met EX-BIN 3032 | -10/Exiles | Aligned with FarCom system 3033 | -10/Exiles | Given EX-Vault access code 3086 | -10/Exiles | Opened EX-Vault 3096 | -10/Exiles | Found Chronowheel 3148 | -10/Exiles | Warned to stay clear of 0b10 Research branches 3312 | -10/Exiles | Left Exiles lab with Chronowheel 3312 | -10/Exiles | Entered Mines 3438 | -9/Mines | Assembled infested the area 3582 | -9/Mines | Learned Materials trap positions 3938 | -9/Mines | Discovered new exit (range 6) 3953 | -9/Mines | Identified exit to Materials 3958 | -9/Mines | Entered Materials 3958 | -8/Materials | Evolved 4 slots: Propulsion x1, Utility x3 3960 | -8/Materials | Loaded intel: 25 trap records 4005 | -8/Materials | Self-destructed Last Messages --------------- U-05 Engineer system terminally corrupted. EXIT=FOUND as-76283 sneak attacks. K-01 Serf destroyed. as-76283 sneak attacks. T-07 Excavator system corrupted by crushing effect. as-76283 destroyed. T-07 Excavator destroyed. K-01 Serf collects debris. EXIT=IDENTIFIED: MATERIALS [Achievement: I Survived The Infestation] [Achievement: Close Call] PARAMETERS=PROPULSION+1,UTILITY+3 LOCATION=MATERIALS GOAL=ESCAPE Receiving FarCom transmissions... Loading 2 Materials zones... Loading Materials trap records (x25)... Penetrated by Slug. Map ----- +----------------------------------------------------+ | | | | | | | | | | | | | | | ?????????????????????????????????????????????????? | | ????????????????????????????????###??????????????? | | ????????????????????????????????# ??????????????? | | ????????????????????????????????# ??????????????? | | ????????????????????????????????# ??????????????? | | ????????????????????????????????# ??????????????? | | ????????????????????????????????# ??????????????? | | ????????????????###########?????###??????????????? | | ????????????????# """" #????####??????????????? | | ????????????????# """" ###### ??????????????? | | ????????????????# """" + ??????????????? | | ??????????###???# w###### ??????????????? | | ??????????#Y##??# #????####??????????????? | | ?????????? #??# #??????????????????????? | | ?????????? #??# #???#####??????????????? | | ?????????? #??# #???# #??????????????? | | ?????????? #??#####/######### #??????????????? | | ?????????? ####### h/ # #??????????????? | | ?????????? +h w # @ + #??????????????? | | ?????????? ####### # # #??????????????? | | ?????????? #?????# ######### #??????????????? | | ?????????? #????## ##??????# #??????????????? | | ??????????######### #??????# #??????????????? | | ?????????? #??????# #??????????????? | | ?????????? " #??????# #??????????????? | | ??????????????????????????????# +??????????????? | | ??????????????????????????????# #??????????????? | | ??????????????????????????????# #??????????????? | | ??????????????????????????????# #??????????????? | | ????????????????????????^?????? ??????????????? | | ???????????????????????^^^????? ??????????????? | | ???????????????????????????????T ??????????????? | | ???????????????????????????????? ???????????????? | | ???????????????????????????o^????????????????????? | | ?????????????????????????????????????????????????? | | ??????????????????????????^??????????????????????? | | ?????????????????????????????????????????????????? | | ?????????????????????????????????????????????????? | | ?????????????????????????????????????????????????? | | ?????????????????????????????????????????????????? | | ?????????????????????????????????????????????????? | | ????????????^^???????????????????????????????????? | | ????????????^^???????????????????????????????????? | +----------------------------------------------------+ Best States ------------- Heat Dissipation 31 Energy Generation 10 Energy Capacity 250 Matter Stores 300 Matter Capacity 300 Sight Range 16 Terrain Scan Density 10 Evasion (%) 40 Recoil Reduction 2 Authchip Count 1 Item Schematics ----------------- None Robot Schematics ------------------ None Fabricated ------------ Nothing Repaired ---------- Nothing Studied --------- None Alien Tech Used ----------------- None Achievements -------------- Bumper Bots Close Call I Survived The Infestation Sixth Sense Tourist Challenges ------------ None Game ------ Seed JunkPartitionInverter Manual? 0 Play Time 00:39:26 Cumulative 5.0 hours Start 2026.02.09 @ 13:40:40 End 2026.02.09 @ 16:36:45 Sessions 1 Manual Loads 0 Difficulty Rogue Special Mode None Game No. 12 Rogue 12 Adventurer 0 Explorer 0 Win Type - Total 0 Types 0/0/0/0/0/0/0/0/0/0 Lore% 10 Gallery% 10 Achievement% 9 Wizard Run 0 Options --------- Layout 1 ASCII 0 Keyboard 0 Movement Mouse Keybinds 0 Fullscreen 2 Font 32/SmallcapsGlow Map View 50x35 Zoom Use 0% Tactical HUD 0 Map Filters NONE Filters NONE Steam 1 RUN: 6ac8a884-ca22-4e0c-90bb-ec6e7d2af861